[Event "SVK-ch Open 2018"]
[Site "Banska Stiavnica"]
[Date "2018.07.13"]
[Round "7"]
[White "Hrbek, Stepan"]
[Black "Sosovicka, Jakub"]
[Result "1/2-1/2"]
[ECO "B90"]
[WhiteElo "2129"]
[BlackElo "2078"]
[Annotator "NA"]
[PlyCount "100"]
[EventDate "2018.07.07"]
[EventType "swiss"]
[EventCountry "SVK"]
[SourceTitle "playchess.com"]
[Source "ChessBase"]
[SourceQuality "1"]
[TimeControl "40/5400+30:1800+30"]

1. e4 {[%emt 0:00:00]} c5 {[%emt 0:00:00]} 2. Nf3 {[%emt 0:00:00]} d6 {[%emt 0:00:00]} 3. d4 {[%emt 0:00:00]} cxd4 {[%emt 0:00:00]} 4. Nxd4 {[%emt 0:00:00]} Nf6 {[%emt 0:00:00]} 5. Nc3 {[%emt 0:00:00]} a6 {[%emt 0:00:03]} 6. Be3 {[%emt 0:00:00]} e5 {[%emt 0:00:37]} 7. Nb3 {[%emt 0:00:00]} Be6 {[%emt 0:00:18]} 8. f3 {[%emt 0:00:12]} Be7 {[%emt 0:00:41]} 9. Qd2 {[%emt 0:00:25]} O-O {[%emt 0:00:33]} 10. O-O-O {[%emt 0:01:18]} Nbd7 {[%emt 0:00:43]} 11. g4 {[%emt 0:00:11]} b5 {[%emt 0:00:21]} 12. g5 {[%emt 0:00:12]} b4 {[%emt 0:01:14]} 13. gxf6 {[%emt 0:00:39]} bxc3 {[%emt 0:00:19]} 14. Qxc3 {[%emt 0:00:09]} Nxf6 {[%emt 0:05:26]} 15. Na5 {[%emt 0:01:16]} Qd7 {[%emt 0:16:35]} 16. Nc6 {[%emt 0:03:11]} Rfc8 {[%emt 0:01:13]} 17. Nxe7+ {[%emt 0:00:05]} Qxe7 {[%emt 0:00:10]} 18. Qa5 {[%emt 0:02:21]} Rc6 {[%emt 0:17:24]} 19. Rg1 {[%emt 0:12:34]} Qb7 {[%emt 0:14:10]} 20. Rg2 {[%emt 0:20:16]} Rb8 {[%emt 0:03:56]} 21. Qa3 {[%emt 0:07:40]} d5 {[%emt 0:08:32]} 22. Bh6 {[%emt 0:13:35]} g6 {[%emt 0:00:35]} 23. Bg5 {[%emt 0:00:31]} Bh3 {[%emt 0:03:25]} 24. exd5 {[%emt 0:20:04]} Rb6 {[%emt 0:02:41]} 25. b3 {[%emt 0:00:10]} Nxd5 {[%emt 0:04:38]} 26. Rgd2 {[%emt 0:01:38]} Be6 {[%emt 0:03:37]} 27. Bc4 {[%emt 0:04:33]} Nb4 {[%emt 0:00:12]} 28. Rd8+ {[%emt 0:03:11]} Rxd8 {[%emt 0:00:35]} 29. Rxd8+ {[%emt 0:00:12]} Kg7 {[%emt 0:00:07]} 30. Bxe6 {[%emt 0:00:35]} Rxe6 {[%emt 0:02:13]} 31. c3 {[%emt 0:03:20]} Qb6 {[%emt 0:03:08]} 32. Qxb4 {[%emt 0:01:52]} Qg1+ {[%emt 0:00:28]} 33. Kb2 {[%emt 0:01:07]} Qxg5 {[%emt 0:00:09]} 34. Qf8+ {[%emt 0:00:04]} Kf6 {[%emt 0:00:09]} 35. Rd7 {[%emt 0:00:25]} Qg2+ {[%emt 0:01:14]} 36. Ka3 {[%emt 0:00:10]} Kg5 {[%emt 0:01:19]} 37. Rxf7 {[%emt 0:03:33]} h6 {[%emt 0:07:40]} 38. h4+ {[%emt 0:02:05]} Kh5 {[%emt 0:01:03]} 39. Rh7 {[%emt 0:01:12]} Qd2 {[%emt 0:00:17]} 40. Qg7 {[%emt 0:00:38]} Qc1+ {[%emt 0:02:28]} 41. Ka4 {[%emt 0:06:11]} Qd2 {[%emt 0:06:31]} 42. a3 {[%emt 0:16:29]} e4 {[%emt 0:06:50]} 43. fxe4 {[%emt 0:06:36]} Rxe4+ {[%emt 0:01:33]} 44. c4 {[%emt 0:00:05]} Qf4 {[%emt 0:02:52]} 45. Qb2 {[%emt 0:01:44]} Re8 {[%emt 0:08:54]} 46. Rd7 {[%emt 0:00:50]} Kxh4 {[%emt 0:03:30]} 47. Rd4 {[%emt 0:00:55]} Re4 {[%emt 0:00:04]} 48. Rxe4 {[%emt 0:00:06]} Qxe4 {[%emt 0:00:06]} 49. Qh2+ {[%emt 0:00:03]} Kg5 {[%emt 0:03:33]} 50. Qg3+ {[%emt 0:00:32]} Kh5 {[%emt 0:00:37]} 1/2-1/2

[Event "SVK-ch Open 2018"]
[Site "Banska Stiavnica"]
[Date "2018.07.13"]
[Round "7"]
[White "Balogh, Peter"]
[Black "Sarkozy, Ladislav"]
[Result "1/2-1/2"]
[ECO "B67"]
[WhiteElo "2097"]
[BlackElo "2247"]
[Annotator "NA"]
[PlyCount "30"]
[EventDate "2018.07.07"]
[EventType "swiss"]
[EventCountry "SVK"]
[SourceTitle "playchess.com"]
[Source "ChessBase"]
[SourceQuality "1"]
[TimeControl "40/5400+30:1800+30"]

1. e4 {[%emt 0:10:00]} c5 {[%emt 0:00:00]} 2. Nf3 {[%emt 0:00:05]} d6 {[%emt 0:00:17]} 3. d4 {[%emt 0:00:05]} cxd4 {[%emt 0:00:08]} 4. Nxd4 {[%emt 0:00:07]} Nf6 {[%emt 0:00:14]} 5. Nc3 {[%emt 0:00:07]} Nc6 {[%emt 0:00:05]} 6. Bg5 {[%emt 0:00:15]} e6 {[%emt 0:00:23]} 7. Qd2 {[%emt 0:00:14]} a6 {[%emt 0:00:44]} 8. O-O-O {[%emt 0:00:07]} Bd7 {[%emt 0:00:05]} 9. f4 {[%emt 0:00:08]} b5 {[%emt 0:00:21]} 10. g4 {[%emt 0:00:56]} b4 {[%emt 0:04:33]} 11. Nb1 {[%emt 0:18:36]} Qb6 {[%emt 0:06:39]} 12. Bxf6 {[%emt 0:03:11]} gxf6 {[%emt 0:00:02]} 13. Bg2 {[%emt 0:00:48]} Rb8 {[%emt 0:08:53]} 14. Nxc6 {[%emt 0:03:07]} Bxc6 {[%emt 0:00:25]} 15. g5 {[%emt 0:00:54]} Rd8 {[%emt 0:05:48]} 1/2-1/2

[Event "SVK-ch Open 2018"]
[Site "Banska Stiavnica"]
[Date "2018.07.13"]
[Round "7"]
[White "Bochnicka, Vladimir"]
[Black "Lintner, Igor"]
[Result "0-1"]
[ECO "C03"]
[WhiteElo "2092"]
[BlackElo "2173"]
[Annotator "NA"]
[PlyCount "62"]
[EventDate "2018.07.07"]
[EventType "swiss"]
[EventCountry "SVK"]
[SourceTitle "playchess.com"]
[Source "ChessBase"]
[SourceQuality "1"]
[TimeControl "40/5400+30:1800+30"]

1. e4 {[%emt 0:00:00]} e6 {[%emt 0:00:00]} 2. d4 {[%emt 0:00:00]} d5 {[%emt 0:00:00]} 3. Nd2 {[%emt 0:00:00]} Be7 {[%emt 0:00:00]} 4. Ngf3 {[%emt 0:00:27]} c5 {[%emt 0:00:00]} 5. exd5 {[%emt 0:07:14]} Qxd5 {[%emt 0:04:02]} 6. Bc4 {[%emt 0:04:36]} Qd8 {[%emt 0:01:20]} 7. O-O {[%emt 0:04:59]} Nf6 {[%emt 0:02:16]} 8. dxc5 {[%emt 0:07:59]} Qc7 {[%emt 0:01:58]} 9. Nb3 {[%emt 0:02:35]} O-O {[%emt 0:01:46]} 10. Qe2 {[%emt 0:02:46]} Nbd7 {[%emt 0:07:03]} 11. Be3 {[%emt 0:08:28]} Nxc5 {[%emt 0:01:28]} 12. Nxc5 {[%emt 0:13:36]} Bxc5 {[%emt 0:00:07]} 13. Bxc5 {[%emt 0:00:08]} Qxc5 {[%emt 0:00:08]} 14. Rad1 {[%emt 0:01:19]} b6 {[%emt 0:01:27]} 15. Rd4 {[%emt 0:07:13]} Bb7 {[%emt 0:00:51]} 16. Rfd1 {[%emt 0:01:29]} Bxf3 {[%emt 0:05:40]} 17. gxf3 {[%emt 0:00:39]} e5 {[%emt 0:09:40]} 18. R4d2 {[%emt 0:01:51]} Rac8 {[%emt 0:07:29]} 19. Bb3 {[%emt 0:00:27]} Nh5 {[%emt 0:02:58]} 20. Qe3 {[%emt 0:06:46]} Qe7 {[%emt 0:03:22]} 21. Rd5 {[%emt 0:08:45]} Nf4 {[%emt 0:29:35]} 22. Rxe5 {[%emt 0:00:14]} Qf6 {[%emt 0:02:49]} 23. Kh1 {[%emt 0:02:35]} Nh3 {[%emt 0:00:33]} 24. Re1 {[%emt 0:06:50]} Rcd8 {[%emt 0:01:46]} 25. Bc4 {[%emt 0:05:54]} Rd2 {[%emt 0:03:40]} 26. Bf1 {[%emt 0:05:21]} Nxf2+ {[%emt 0:02:53]} 27. Kg1 {[%emt 0:00:26]} Rxc2 {[%emt 0:00:16]} 28. Re2 {[%emt 0:00:39]} Rxe2 {[%emt 0:01:57]} 29. Qxe2 Nd3 {[%emt 0:00:06]} 30. Re7 {[%emt 0:01:01]} Qg5+ {[%emt 0:00:41]} 31. Bg2 {[%emt 0:00:37]} Nf4 {[%emt 0:00:06]} 0-1

[Event "SVK-ch Open 2018"]
[Site "Banska Stiavnica"]
[Date "2018.07.13"]
[Round "7"]
[White "Lukac, Roman"]
[Black "Ihnat, Marek"]
[Result "1/2-1/2"]
[ECO "B35"]
[WhiteElo "2089"]
[BlackElo "1432"]
[Annotator "NA"]
[PlyCount "77"]
[EventDate "2018.07.07"]
[EventType "swiss"]
[EventCountry "SVK"]
[SourceTitle "playchess.com"]
[Source "ChessBase"]
[SourceQuality "1"]
[TimeControl "40/5400+30:1800+30"]

1. e4 {[%emt 0:02:16]} c5 {[%emt 0:00:00]} 2. Nf3 {[%emt 0:00:13]} Nc6 {[%emt 0:00:00]} 3. d4 {[%emt 0:00:17]} cxd4 {[%emt 0:00:00]} 4. Nxd4 {[%emt 0:00:06]} g6 {[%emt 0:00:00]} 5. Nc3 {[%emt 0:01:49]} Bg7 {[%emt 0:00:00]} 6. Be3 {[%emt 0:00:17]} Nf6 {[%emt 0:00:05]} 7. Bc4 {[%emt 0:02:22]} O-O {[%emt 0:00:06]} 8. Bb3 {[%emt 0:02:20]} a5 {[%emt 0:00:04]} 9. f3 {[%emt 0:08:13]} d5 {[%emt 0:21:27]} 10. Bxd5 {[%emt 0:24:04]} Nxd5 {[%emt 0:22:24]} 11. Nxd5 {[%emt 0:04:02]} Rb8 {[%emt 0:16:58]} 12. c3 {[%emt 0:14:07]} e6 {[%emt 0:02:33]} 13. Nf4 {[%emt 0:00:46]} Nxd4 {[%emt 0:07:16]} 14. cxd4 {[%emt 0:06:26]} Qb6 {[%emt 0:04:27]} 15. Qd2 Rd8 16. Rd1 {[%emt 0:04:53]} Qb5 {[%emt 0:02:42]} 17. Ne2 {[%emt 0:02:38]} b6 {[%emt 0:02:00]} 18. O-O {[%emt 0:03:25]} Ba6 {[%emt 0:00:32]} 19. Rfe1 {[%emt 0:00:22]} Rd7 {[%emt 0:04:17]} 20. Nc3 {[%emt 0:05:28]} Qb4 {[%emt 0:02:33]} 21. Qf2 {[%emt 0:02:38]} Rbd8 {[%emt 0:01:35]} 22. e5 {[%emt 0:00:28]} f6 {[%emt 0:05:51]} 23. f4 {[%emt 0:07:02]} Bb7 {[%emt 0:00:46]} 24. Rd2 {[%emt 0:01:12]} fxe5 {[%emt 0:01:20]} 25. fxe5 {[%emt 0:00:46]} Rf7 {[%emt 0:01:33]} 26. Qg3 {[%emt 0:00:49]} Rdf8 {[%emt 0:01:17]} 27. h4 {[%emt 0:01:45]} Kh8 {[%emt 0:00:55]} 28. Ree2 {[%emt 0:00:51]} Ba6 {[%emt 0:00:53]} 29. Rf2 {[%emt 0:00:09]} Rxf2 {[%emt 0:00:09]} 30. Rxf2 {[%emt 0:00:10]} Rxf2 {[%emt 0:01:17]} 31. Qxf2 {[%emt 0:00:07]} Qf8 {[%emt 0:00:44]} 32. Qxf8+ {[%emt 0:02:23]} Bxf8 {[%emt 0:00:04]} 33. d5 {[%emt 0:00:12]} exd5 {[%emt 0:01:42]} 34. Nxd5 {[%emt 0:00:02]} Bc4 {[%emt 0:00:58]} 35. Nc7 {[%emt 0:02:48]} Bxa2 {[%emt 0:00:28]} 36. Bxb6 {[%emt 0:00:40]} Bb4 {[%emt 0:00:33]} 37. Kf2 {[%emt 0:00:44]} Kg8 {[%emt 0:00:25]} 38. Kf3 {[%emt 0:00:40]} Kf8 {[%emt 0:00:32]} 39. g4 {[%emt 0:00:50]} 1/2-1/2

[Event "SVK-ch Open 2018"]
[Site "Banska Stiavnica"]
[Date "2018.07.13"]
[Round "7"]
[White "Brhel, Jan"]
[Black "Jamrich, Gyorgy"]
[Result "1/2-1/2"]
[ECO "A50"]
[WhiteElo "2070"]
[BlackElo "2200"]
[Annotator "NA"]
[PlyCount "120"]
[EventDate "2018.07.07"]
[EventType "swiss"]
[EventCountry "SVK"]
[SourceTitle "playchess.com"]
[Source "ChessBase"]
[SourceQuality "1"]
[TimeControl "40/5400+30:1800+30"]

1. d4 {[%emt 0:02:37]} Nf6 {[%emt 0:00:00]} 2. c4 {[%emt 0:00:11]} b6 {[%emt 0:00:00]} 3. Nc3 {[%emt 0:00:51]} Bb7 {[%emt 0:00:00]} 4. f3 {[%emt 0:04:46]} e6 {[%emt 0:04:47]} 5. e3 {[%emt 0:04:17]} d5 {[%emt 0:02:14]} 6. cxd5 {[%emt 0:00:10]} Nxd5 {[%emt 0:04:15]} 7. e4 {[%emt 0:05:03]} Nf6 {[%emt 0:00:25]} 8. Be3 {[%emt 0:00:42]} Nbd7 {[%emt 0:04:36]} 9. Bb5 {[%emt 0:02:45]} c6 {[%emt 0:05:11]} 10. Bd3 {[%emt 0:02:28]} e5 {[%emt 0:00:52]} 11. Nge2 {[%emt 0:00:21]} g6 {[%emt 0:01:33]} 12. O-O {[%emt 0:00:26]} Bg7 {[%emt 0:00:07]} 13. Qb3 {[%emt 0:11:22]} O-O {[%emt 0:01:45]} 14. Rfd1 {[%emt 0:04:07]} Qe7 {[%emt 0:02:16]} 15. a4 {[%emt 0:00:09]} Rfe8 {[%emt 0:27:24]} 16. a5 {[%emt 0:03:13]} exd4 {[%emt 0:00:16]} 17. Bxd4 {[%emt 0:02:37]} Nc5 {[%emt 0:00:06]} 18. Qa3 {[%emt 0:02:03]} Nxd3 {[%emt 0:00:07]} 19. Qxe7 {[%emt 0:02:52]} Rxe7 {[%emt 0:01:38]} 20. Rxd3 {[%emt 0:08:32]} Rd7 {[%emt 0:08:14]} 21. Rad1 {[%emt 0:05:34]} Ba6 {[%emt 0:00:30]} 22. R3d2 {[%emt 0:00:09]} bxa5 {[%emt 0:02:32]} 23. Bxf6 {[%emt 0:00:37]} Rxd2 {[%emt 0:00:06]} 24. Rxd2 {[%emt 0:00:20]} Bxf6 {[%emt 0:00:11]} 25. Rd6 {[%emt 0:00:08]} Kg7 {[%emt 0:00:43]} 26. Rxc6 {[%emt 0:00:42]} Bxe2 {[%emt 0:00:24]} 27. Nxe2 {[%emt 0:00:02]} Bxb2 {[%emt 0:00:09]} 28. Ra6 {[%emt 0:00:24]} Be5 {[%emt 0:05:08]} 29. Rxa5 {[%emt 0:00:24]} Bc7 {[%emt 0:00:04]} 30. Ra6 {[%emt 0:03:11]} Bb6+ {[%emt 0:07:01]} 31. Kf1 {[%emt 0:00:04]} Rc8 {[%emt 0:00:10]} 32. Ra2 {[%emt 0:03:34]} g5 {[%emt 0:02:58]} 33. Ng3 {[%emt 0:00:21]} Kf6 {[%emt 0:00:27]} 34. Nf5 {[%emt 0:00:23]} h5 {[%emt 0:00:25]} 35. Rd2 {[%emt 0:01:36]} Rd8 {[%emt 0:02:51]} 36. Rxd8 {[%emt 0:04:27]} Bxd8 {[%emt 0:00:07]} 37. h3 {[%emt 0:02:35]} Ke5 {[%emt 0:07:28]} 38. Nh6 {[%emt 0:00:38]} Ke6 {[%emt 0:00:31]} 39. Nf5 {[%emt 0:00:10]} Kd7 {[%emt 0:11:03]} 40. Ke2 {[%emt 0:01:00]} Kc6 {[%emt 0:00:45]} 41. Kd3 {[%emt 0:30:20]} Kc5 {[%emt 0:30:28]} 42. Kc3 {[%emt 0:02:50]} h4 {[%emt 0:00:00]} 43. g3 {[%emt 0:00:00]} Bf6+ {[%emt 0:00:00]} 44. Kb3 {[%emt 0:00:00]} hxg3 {[%emt 0:00:00]} 45. Nxg3 {[%emt 0:00:00]} Kd4 {[%emt 0:00:00]} 46. Nf5+ {[%emt 0:00:00]} Ke5 {[%emt 0:00:00]} 47. Nh6 {[%emt 0:00:00]} Ke6 {[%emt 0:00:00]} 48. Nf5 {[%emt 0:00:00]} Bd8 {[%emt 0:00:00]} 49. Kc4 {[%emt 0:00:00]} Bb6 {[%emt 0:00:00]} 50. h4 {[%emt 0:00:00]} gxh4 {[%emt 0:00:00]} 51. Nxh4 {[%emt 0:00:00]} Ke5 {[%emt 0:00:00]} 52. Nf5 {[%emt 0:00:00]} a6 {[%emt 0:00:00]} 53. Ne7 {[%emt 0:00:00]} Kf4 {[%emt 0:00:00]} 54. Nd5+ {[%emt 0:00:00]} Kxf3 {[%emt 0:00:00]} 55. Nxb6 {[%emt 0:00:00]} Kxe4 {[%emt 0:00:00]} 56. Nc8 {[%emt 0:00:00]} Ke5 {[%emt 0:00:00]} 57. Ne7 {[%emt 0:00:00]} Ke6 {[%emt 0:00:00]} 58. Nc6 {[%emt 0:00:00]} f6 {[%emt 0:00:00]} 59. Kc5 {[%emt 0:00:00]} f5 {[%emt 0:00:00]} 60. Nd4+ Ke5 1/2-1/2

[Event "SVK-ch Open 2018"]
[Site "Banska Stiavnica"]
[Date "2018.07.13"]
[Round "7"]
[White "Bojda, Lubomir"]
[Black "Rakovsky, Jakub"]
[Result "1-0"]
[ECO "A05"]
[WhiteElo "2064"]
[BlackElo "1409"]
[Annotator "NA"]
[PlyCount "89"]
[EventDate "2018.07.07"]
[EventType "swiss"]
[EventCountry "SVK"]
[SourceTitle "playchess.com"]
[Source "ChessBase"]
[SourceQuality "1"]
[TimeControl "40/5400+30:1800+30"]

1. Nf3 Nf6 {[%emt 0:00:15]} 2. c4 {[%emt 0:00:16]} e6 {[%emt 0:02:18]} 3. g3 {[%emt 0:00:32]} d5 {[%emt 0:02:33]} 4. Bg2 {[%emt 0:01:29]} Nc6 {[%emt 0:01:53]} 5. O-O {[%emt 0:03:14]} Be7 {[%emt 0:02:32]} 6. d4 {[%emt 0:03:57]} O-O {[%emt 0:01:56]} 7. Nbd2 {[%emt 0:04:01]} b6 {[%emt 0:03:23]} 8. b3 {[%emt 0:03:45]} Bb7 {[%emt 0:00:25]} 9. Bb2 {[%emt 0:02:11]} Nb4 {[%emt 0:03:57]} 10. a3 {[%emt 0:04:43]} Na6 {[%emt 0:02:13]} 11. b4 {[%emt 0:04:51]} c5 {[%emt 0:02:19]} 12. bxc5 {[%emt 0:10:48]} bxc5 {[%emt 0:00:43]} 13. Rb1 {[%emt 0:06:10]} Rb8 {[%emt 0:06:45]} 14. Ne5 {[%emt 0:04:40]} Nd7 {[%emt 0:05:11]} 15. Nd3 {[%emt 0:04:33]} Nb6 {[%emt 0:03:34]} 16. dxc5 {[%emt 0:05:39]} Nxc5 {[%emt 0:01:47]} 17. Be5 {[%emt 0:02:57]} Rc8 {[%emt 0:04:35]} 18. Nxc5 {[%emt 0:03:50]} Rxc5 {[%emt 0:05:46]} 19. Nb3 {[%emt 0:06:20]} Rc8 {[%emt 0:02:39]} 20. c5 {[%emt 0:07:55]} Nc4 {[%emt 0:08:03]} 21. Bc3 {[%emt 0:03:59]} Ba8 {[%emt 0:04:38]} 22. a4 {[%emt 0:01:05]} Qc7 {[%emt 0:02:51]} 23. e3 {[%emt 0:00:12]} a6 {[%emt 0:01:42]} 24. Qe2 {[%emt 0:01:09]} Bc6 {[%emt 0:02:57]} 25. e4 {[%emt 0:01:34]} Rfd8 {[%emt 0:05:50]} 26. Rfe1 {[%emt 0:02:26]} Bf8 {[%emt 0:01:06]} 27. exd5 {[%emt 0:00:51]} Bxd5 {[%emt 0:01:06]} 28. Bxd5 {[%emt 0:00:13]} exd5 {[%emt 0:00:12]} 29. Nd4 {[%emt 0:02:11]} Qxc5 {[%emt 0:03:25]} 30. Qg4 {[%emt 0:02:15]} Qd6 {[%emt 0:02:32]} 31. Ba1 {[%emt 0:01:03]} Qg6 {[%emt 0:01:48]} 32. Qe2 {[%emt 0:00:46]} a5 {[%emt 0:02:33]} 33. Rb5 {[%emt 0:00:35]} Bb4 {[%emt 0:00:33]} 34. Rd1 {[%emt 0:00:27]} Na3 {[%emt 0:01:40]} 35. Rb7 {[%emt 0:01:30]} Nc2 {[%emt 0:00:59]} 36. Nxc2 {[%emt 0:00:58]} Qxc2 {[%emt 0:02:08]} 37. Qf3 {[%emt 0:00:31]} Qg6 {[%emt 0:04:29]} 38. Bd4 {[%emt 0:00:47]} Qe6 {[%emt 0:00:54]} 39. Rb6 {[%emt 0:01:31]} Rc6 {[%emt 0:00:21]} 40. Rb5 {[%emt 0:00:23]} Qe4 {[%emt 0:02:11]} 41. Qh5 {[%emt 0:32:35]} Qe6 {[%emt 0:33:09]} 42. Bxg7 {[%emt 0:00:00]} Rdc8 {[%emt 0:00:00]} 43. Bd4 {[%emt 0:00:00]} Rc1 {[%emt 0:00:00]} 44. Qg5+ {[%emt 0:00:00]} Kf8 {[%emt 0:00:00]} 45. Rxc1 {[%emt 0:00:00]} 1-0

[Event "SVK-ch Open 2018"]
[Site "Banska Stiavnica"]
[Date "2018.07.13"]
[Round "7"]
[White "Posa, Norbert"]
[Black "Liska, Jaroslav"]
[Result "1-0"]
[ECO "D00"]
[WhiteElo "2036"]
[BlackElo "1914"]
[Annotator "NA"]
[PlyCount "141"]
[EventDate "2018.07.07"]
[EventType "swiss"]
[EventCountry "SVK"]
[SourceTitle "playchess.com"]
[Source "ChessBase"]
[SourceQuality "1"]
[TimeControl "40/5400+30:1800+30"]

1. d4 {[%emt 0:00:00]} d5 {[%emt 0:00:00]} 2. Bf4 {[%emt 0:00:00]} Nf6 {[%emt 0:00:16]} 3. e3 {[%emt 0:00:40]} Bf5 {[%emt 0:00:59]} 4. Nf3 {[%emt 0:05:26]} h6 {[%emt 0:00:31]} 5. Bd3 {[%emt 0:03:10]} Bxd3 {[%emt 0:00:19]} 6. Qxd3 {[%emt 0:01:38]} c6 {[%emt 0:00:19]} 7. O-O {[%emt 0:01:07]} e6 {[%emt 0:00:38]} 8. h3 Be7 {[%emt 0:01:04]} 9. Nbd2 {[%emt 0:01:22]} Nbd7 {[%emt 0:02:14]} 10. c4 {[%emt 0:04:12]} dxc4 {[%emt 0:01:27]} 11. Nxc4 {[%emt 0:00:56]} Nb6 {[%emt 0:00:06]} 12. Rfd1 {[%emt 0:02:55]} Nxc4 {[%emt 0:00:49]} 13. Qxc4 {[%emt 0:00:07]} O-O {[%emt 0:00:19]} 14. Rab1 {[%emt 0:04:49]} Nd5 {[%emt 0:02:56]} 15. Bh2 {[%emt 0:01:45]} Bd6 {[%emt 0:02:06]} 16. Ne5 {[%emt 0:01:27]} Bxe5 {[%emt 0:00:59]} 17. Bxe5 {[%emt 0:00:08]} Qe7 {[%emt 0:01:58]} 18. Qb3 {[%emt 0:05:46]} Qd7 {[%emt 0:05:40]} 19. e4 {[%emt 0:01:43]} Ne7 {[%emt 0:00:32]} 20. Qg3 {[%emt 0:03:45]} Ng6 {[%emt 0:01:12]} 21. Rd3 {[%emt 0:01:32]} Nxe5 {[%emt 0:06:03]} 22. Qxe5 {[%emt 0:04:19]} f6 {[%emt 0:04:00]} 23. Qh5 {[%emt 0:03:30]} Qf7 {[%emt 0:00:29]} 24. Qe2 {[%emt 0:03:50]} Rad8 {[%emt 0:00:59]} 25. Rbd1 {[%emt 0:00:43]} Rd7 {[%emt 0:00:17]} 26. a3 {[%emt 0:07:37]} Rfd8 {[%emt 0:00:34]} 27. b4 {[%emt 0:01:10]} a6 {[%emt 0:00:44]} 28. f4 {[%emt 0:02:27]} f5 {[%emt 0:06:10]} 29. e5 {[%emt 0:13:55]} Kh7 {[%emt 0:01:47]} 30. Qe3 {[%emt 0:09:11]} g6 {[%emt 0:00:53]} 31. g4 {[%emt 0:04:06]} Qe7 {[%emt 0:09:29]} 32. Kh2 {[%emt 0:01:22]} fxg4 {[%emt 0:06:05]} 33. Rg1 {[%emt 0:05:49]} gxh3 {[%emt 0:03:01]} 34. Qe4 {[%emt 0:00:07]} Qf7 {[%emt 0:00:49]} 35. Kxh3 {[%emt 0:04:05]} Qf5+ {[%emt 0:00:44]} 36. Qxf5 {[%emt 0:00:05]} gxf5 {[%emt 0:00:22]} 37. Rgd1 {[%emt 0:00:04]} Rg8 {[%emt 0:07:52]} 38. Rg3 {[%emt 0:00:11]} Rdg7 {[%emt 0:00:28]} 39. Rdg1 {[%emt 0:00:15]} Rxg3+ {[%emt 0:07:51]} 40. Rxg3 {[%emt 0:00:07]} Rd8 {[%emt 0:11:35]} 41. Rd3 {[%emt 0:30:11]} b6 {[%emt 0:39:31]} 42. Rc3 {[%emt 0:02:02]} Rxd4 {[%emt 0:00:10]} 43. Rxc6 {[%emt 0:02:18]} Rxf4 {[%emt 0:00:20]} 44. Kg3 {[%emt 0:00:00]} Rg4+ {[%emt 0:00:00]} 45. Kf3 {[%emt 0:00:00]} a5 {[%emt 0:00:00]} 46. Rxb6 {[%emt 0:00:00]} axb4 {[%emt 0:00:00]} 47. Rxb4 {[%emt 0:00:00]} Rg7 {[%emt 0:00:00]} 48. a4 {[%emt 0:00:00]} Re7 {[%emt 0:00:00]} 49. Rb6 {[%emt 0:00:00]} Kg7 {[%emt 0:00:00]} 50. a5 {[%emt 0:00:00]} Rd7 {[%emt 0:00:00]} 51. Rxe6 {[%emt 0:00:00]} Rd5 {[%emt 0:00:00]} 52. a6 {[%emt 0:00:00]} Rd4 {[%emt 0:00:00]} 53. a7 {[%emt 0:01:47]} Ra4 {[%emt 0:00:00]} 54. Re7+ {[%emt 0:00:06]} Kg6 {[%emt 0:00:00]} 55. Rb7 {[%emt 0:00:41]} Ra3+ {[%emt 0:00:00]} 56. Ke2 {[%emt 0:00:16]} Ra2+ {[%emt 0:00:00]} 57. Ke3 {[%emt 0:00:59]} Ra3+ {[%emt 0:00:00]} 58. Kd4 {[%emt 0:00:02]} Ra4+ {[%emt 0:00:00]} 59. Kc3 {[%emt 0:00:33]} Ra3+ {[%emt 0:01:12]} 60. Kb2 {[%emt 0:00:26]} Ra6 {[%emt 0:01:39]} 61. e6 {[%emt 0:00:21]} h5 {[%emt 0:00:22]} 62. e7 {[%emt 0:00:05]} Kf7 {[%emt 0:00:02]} 63. e8=Q+ {[%emt 0:00:17]} Kxe8 {[%emt 0:00:02]} 64. Rb8+ {[%emt 0:00:08]} Kf7 {[%emt 0:00:08]} 65. a8=Q {[%emt 0:00:03]} Rxa8 {[%emt 0:00:03]} 66. Rxa8 {[%emt 0:00:10]} Kg6 {[%emt 0:00:15]} 67. Rg8+ {[%emt 0:00:25]} Kf6 {[%emt 0:00:19]} 68. Kc2 {[%emt 0:00:12]} h4 {[%emt 0:00:38]} 69. Kd2 {[%emt 0:00:07]} f4 {[%emt 0:00:02]} 70. Ke2 {[%emt 0:01:05]} Kf5 {[%emt 0:00:26]} 71. Kf3 {[%emt 0:00:27]} 1-0

[Event "SVK-ch Open 2018"]
[Site "Banska Stiavnica"]
[Date "2018.07.13"]
[Round "7"]
[White "Toma, Rudolf"]
[Black "Brnusak, Andrej"]
[Result "1/2-1/2"]
[ECO "A56"]
[WhiteElo "2018"]
[BlackElo "1866"]
[Annotator "NA"]
[PlyCount "82"]
[EventDate "2018.07.07"]
[EventType "swiss"]
[EventCountry "SVK"]
[SourceTitle "playchess.com"]
[Source "ChessBase"]
[SourceQuality "1"]
[TimeControl "40/5400+30:1800+30"]

1. d4 {[%emt 0:00:00]} Nf6 {[%emt 0:00:00]} 2. c4 {[%emt 0:00:13]} c5 {[%emt 0:00:46]} 3. Nf3 {[%emt 0:01:02]} cxd4 {[%emt 0:00:18]} 4. Nxd4 {[%emt 0:00:12]} e5 {[%emt 0:00:25]} 5. Nc2 {[%emt 0:00:36]} d5 {[%emt 0:00:42]} 6. Bg5 {[%emt 0:00:53]} Qa5+ {[%emt 0:03:38]} 7. Qd2 {[%emt 0:01:25]} Qxd2+ {[%emt 0:03:08]} 8. Nxd2 {[%emt 0:00:08]} dxc4 {[%emt 0:02:30]} 9. Nxc4 {[%emt 0:02:23]} Nc6 {[%emt 0:02:37]} 10. Bxf6 {[%emt 0:03:34]} gxf6 {[%emt 0:00:09]} 11. e4 {[%emt 0:00:03]} Be6 {[%emt 0:03:17]} 12. O-O-O {[%emt 0:04:34]} Nb4 {[%emt 0:08:03]} 13. Nxb4 {[%emt 0:00:50]} Bxb4 {[%emt 0:00:10]} 14. Kb1 {[%emt 0:00:07]} Ke7 {[%emt 0:04:28]} 15. Be2 {[%emt 0:02:42]} Rhd8 {[%emt 0:03:16]} 16. f3 {[%emt 0:01:08]} Rac8 {[%emt 0:04:47]} 17. Rxd8 {[%emt 0:03:40]} Rxd8 {[%emt 0:00:12]} 18. a3 {[%emt 0:00:28]} Bc5 {[%emt 0:01:06]} 19. b4 {[%emt 0:02:06]} Bd4 {[%emt 0:00:38]} 20. Rc1 {[%emt 0:01:36]} Bxc4 {[%emt 0:05:48]} 21. Rxc4 {[%emt 0:00:56]} Kd7 {[%emt 0:00:55]} 22. Ka2 {[%emt 0:00:46]} Rc8 {[%emt 0:00:47]} 23. Rxc8 {[%emt 0:00:20]} Kxc8 {[%emt 0:00:05]} 24. Bc4 {[%emt 0:00:05]} b6 {[%emt 0:00:42]} 25. Kb3 {[%emt 0:01:16]} a5 {[%emt 0:02:24]} 26. Bxf7 {[%emt 0:00:20]} axb4 {[%emt 0:00:40]} 27. axb4 {[%emt 0:00:30]} Kc7 {[%emt 0:01:11]} 28. Kc4 {[%emt 0:00:17]} Kd6 {[%emt 0:00:12]} 29. Kd3 {[%emt 0:09:05]} Bg1 {[%emt 0:03:09]} 30. h3 {[%emt 0:00:13]} Bf2 {[%emt 0:01:23]} 31. Be8 {[%emt 0:03:47]} Be1 {[%emt 0:03:11]} 32. b5 {[%emt 0:00:11]} Kc5 {[%emt 0:01:31]} 33. Ke3 {[%emt 0:01:05]} Bg3 {[%emt 0:00:41]} 34. Bc6 {[%emt 0:00:24]} h6 {[%emt 0:01:30]} 35. Be8 {[%emt 0:01:09]} Kc4 {[%emt 0:00:32]} 36. Bc6 {[%emt 0:03:17]} h5 {[%emt 0:01:47]} 37. f4 {[%emt 0:07:55]} Bxf4+ {[%emt 0:00:11]} 38. Kf3 {[%emt 0:00:06]} h4 {[%emt 0:00:08]} 39. Kg4 {[%emt 0:00:53]} Bg3 {[%emt 0:00:05]} 40. Kf5 {[%emt 0:00:23]} Kd3 {[%emt 0:00:59]} 41. Kxf6 {[%emt 0:31:41]} Ke2 {[%emt 0:30:17]} 1/2-1/2